fUST/lending_fUST_20250213
["ID","MTS","AMOUNT","RATE_DAILY","PERIOD"]
[352945250,1739454632702,-2295.0,0.00014578,2]
[352945252,1739454632711,-13270.63763847,0.0001469,2]
[352945254,1739454632721,-300.0,0.000147,5]
[352945256,1739454632731,-600.0,0.00014778,2]
[352945258,1739454632744,-168.24611052,0.00014822,2]
[352945260,1739454632753,-760.5,0.00014843,2]
[352945262,1739454632762,-500.0,0.00014876,2]
[352945264,1739454632771,-279.27384069,0.00014899,2]
[352945266,1739454632781,-151.0,0.000149,2]
[352945268,1739454632791,-160.584668,0.000149,2]
[352945270,1739454632801,-500.0,0.00014904,2]
[352945272,1739454632811,-500.0,0.00014931,2]
[352945274,1739454632820,-500.0,0.00014959,2]
[352945278,1739454632844,-151.0,0.00014961,2]
[352945280,1739454632856,-500.0,0.00014962,2]
[352945282,1739454632867,-500.0,0.00014962,2]
[352945284,1739454632877,-500.0,0.00014962,2]
[352945286,1739454632888,-500.0,0.00014962,2]
[352945288,1739454632899,-500.0,0.00014962,2]
[352945290,1739454632910,-500.0,0.00014962,2]
[352945292,1739454632920,-500.0,0.00014962,2]
[352945295,1739454632931,-177.01839919,0.00014962,2]
[352945297,1739454632941,-500.0,0.00014962,2]
[352945299,1739454632951,-500.0,0.00014962,2]
[352945301,1739454632961,-500.0,0.00014962,2]
[352945303,1739454632972,-500.0,0.00014962,2]
[352945305,1739454632984,-500.0,0.00014962,2]
[352945307,1739454632994,-615.6810806,0.00014962,2]
[352945308,1739454633005,-500.0,0.00014962,2]
[352945310,1739454633015,-500.0,0.00014962,2]
[352945311,1739454633026,-252.32691882,0.00014962,2]
[352945314,1739454633041,-247.67308118,0.00014962,2]
[352945315,1739454633052,-289.624546,0.00014962,2]
[352945317,1739454633063,-500.0,0.00014962,2]
[352945319,1739454633074,-500.0,0.00014962,2]
[352945320,1739454633084,-500.0,0.00014962,2]
[352945322,1739454633095,-500.0,0.00014962,2]
[352945324,1739454633105,-500.0,0.00014962,2]
[352945325,1739454633115,-500.0,0.00014962,2]
[352945327,1739454633126,-500.0,0.00014962,2]
[352945328,1739454633136,-500.0,0.00014962,2]
[352945330,1739454633147,-500.0,0.00014962,2]
[352945332,1739454633157,-127.67731398,0.00014962,2]
[352945335,1739454633189,-372.32268602,0.00014962,2]
[352945336,1739454633199,-500.0,0.00014962,2]
[352945338,1739454633210,-500.0,0.00014962,2]
[352945339,1739454633219,-500.0,0.00014962,2]
[352945341,1739454633229,-500.0,0.00014962,2]
[352945343,1739454633243,-500.0,0.00014962,2]
[352945344,1739454633253,-500.0,0.00014962,2]
[352945346,1739454633264,-500.0,0.00014962,2]
[352945347,1739454633274,-500.0,0.00014962,2]
[352945349,1739454633284,-500.0,0.00014962,2]
[352945350,1739454633294,-500.0,0.00014962,2]
[352945352,1739454633304,-12444.43402641,0.00014963,2]
[352945354,1739454633318,-5579.66924897,0.00014963,2]
[352945379,1739454638334,-21874.6340862,0.00014963,2]
[352945380,1739454638346,-19000.63296782,0.00014963,2]
[352945381,1739454638356,-54007.7978822,0.00014963,2]
[352945382,1739454638366,-151.0,0.0001497,2]
[352945383,1739454638376,-151.0,0.0001497,2]
[352945384,1739454638385,-150.15,0.0001497,2]
[352945385,1739454638395,-500.0,0.0001497,2]
[352945386,1739454638404,-500.0,0.0001497,2]
[352945387,1739454638414,-500.0,0.0001497,2]
[352945388,1739454638424,-500.0,0.0001497,2]
[352945390,1739454638434,-164.37045142,0.0001497,2]
[352945392,1739454638444,-500.0,0.0001497,2]
[352945393,1739454638455,-150.14,0.0001497,2]
[352945394,1739454638465,-150.14,0.0001497,2]
[352945395,1739454638474,-150.14,0.0001497,2]
[352945396,1739454638484,-150.34687319,0.0001497,2]
[352945397,1739454638497,-500.0,0.0001497,2]
[352945398,1739454638507,-500.0,0.0001497,2]
[352945399,1739454638516,-150.14,0.0001497,2]
[352945400,1739454638530,-150.14,0.0001497,2]
[352945401,1739454638539,-150.14,0.0001497,2]
[352945402,1739454638550,-150.14,0.0001497,2]
[352945403,1739454638560,-1014.0,0.0001497,2]
[352945404,1739454638569,-500.0,0.0001497,2]
[352945405,1739454638579,-150.14,0.0001497,2]
[352945406,1739454638589,-627.0,0.0001497,2]
[352945407,1739454638599,-150.14,0.0001497,2]
[352945408,1739454638609,-58899.3703294,0.0001497,2]
[352945409,1739454638619,-31016.37461555,0.0001497,2]
[352945416,1739454638922,-22991.42326665,0.0001497,2]
[352945417,1739454638933,-500.0,0.00014973,2]
[352945418,1739454638946,-395.55243534,0.00014973,2]
[352945419,1739454638956,-47119.4962635,0.00014974,2]
[352945420,1739454638966,-30412.46464049,0.00014974,2]
[352945598,1739454640562,-1924.99298498,0.00014814,2]
[352945599,1739454640574,-366.0670543,0.00014814,2]
[352945887,1739454643287,-1471.05693106,0.00014814,2]
[352946216,1739454646572,-1237.88302966,0.00014814,2]
[352946218,1739454646582,-186.18256046,0.00014962,2]
[352946220,1739454646592,-3506.28440988,0.00014974,2]
[352946222,1739454646635,-1431.70070756,0.00014974,2]
[352947176,1739455832688,-910.30236845,9.863e-05,2]
[352947178,1739455832703,-514.58867558,9.863e-05,2]
[352947180,1739455832712,-304.27016536,0.00010478,2]
[352947182,1739455832722,-400.0,0.00010685,2]
[352947184,1739455832731,-192.83,0.00010959,2]
[352947186,1739455832741,-600.0,0.00013408,2]
[352947188,1739455832751,-300.0,0.00014584,2]
[352947189,1739455832760,-150.0,0.00014585,2]
[352947190,1739455832770,-538.0,0.00014585,2]
[352947192,1739455832779,-1970.0,0.00014585,2]
[352947194,1739455832788,-2293.0,0.00014585,2]
[352947196,1739455832798,-230.06893161,0.00014585,2]
[352947198,1739455832808,-1147.68698488,0.00014676,2]
[352947201,1739455832824,-4840.85085989,0.00014676,2]
[352947203,1739455832833,-300.0,0.000147,5]
[352947205,1739455832843,-600.0,0.00014778,2]
[352947207,1739455832852,-13270.63763847,0.00014779,2]
[352947209,1739455832861,-500.0,0.00014876,2]
[352947211,1739455832871,-500.0,0.00014904,2]
[352947213,1739455832881,-500.0,0.00014931,2]
[352947215,1739455832891,-500.0,0.00014959,2]
[352947217,1739455832901,-500.0,0.00014973,2]
[352947220,1739455832911,-276.88670474,0.00014973,2]
[352947221,1739455832920,-500.0,0.00014973,2]
[352947223,1739455832930,-500.0,0.00014973,2]
[352947225,1739455832940,-179.58268427,0.00014973,2]
[352947228,1739455832952,-500.0,0.00014973,2]
[352947229,1739455832963,-476.62494956,0.00014973,2]
[352947231,1739455832972,-500.0,0.00014973,2]
[352947233,1739455832981,-177.03289289,0.00014973,2]
[352947235,1739455832990,-500.0,0.00014973,2]
[352947237,1739455833000,-186.18256046,0.00014973,2]
[352947239,1739455833009,-81.91241823,0.00014973,5]
[352947242,1739455833025,-433.8591904,0.00014973,5]
[352947245,1739455833041,-818.20349281,0.00014973,5]
[352947763,1739455838809,-396.0,0.00014585,2]
[352947765,1739455838818,-1911.79681696,0.00014973,5]
[352947767,1739455838830,-18934.38086802,0.00014973,5]
[352947769,1739455838840,-72950.74493171,0.00014974,2]
[352947771,1739455838852,-230388.39065798,0.00014974,2]
[352947900,1739455840911,-2903.64800209,0.00014973,5]
[352947901,1739455840922,-86428.93899767,0.00014974,2]
[352948307,1739455846593,-186.18256046,0.00014973,2]
[352948310,1739455846603,-8924.88093954,0.00014974,2]
[352948312,1739455846615,-775.2698612,0.00014974,2]
[352948314,1739455846626,-10812.66813009,0.00014974,2]
[352948317,1739455846649,-1757.83,0.00014974,2]
[352948320,1739455846660,-2794.63770967,0.00014974,2]
[352948928,1739457032480,-791.06408051,9.471e-05,2]
[352948929,1739457032490,-161.26339454,9.664e-05,2]
[352948932,1739457032501,-2634.03763601,9.863e-05,2]
[352948933,1739457032512,-5602.32514938,0.0001,2]
[352948935,1739457032522,-400.0,0.00010685,2]
[352948937,1739457032531,-300.0,0.00011435,2]
[352948939,1739457032541,-1005.445775,0.00011436,2]
[352948941,1739457032553,-700.0,0.00012312,2]
[352948943,1739457032563,-2000.5611635,0.00012414,2]
[352948945,1739457032573,-420.0,0.0001256,2]
[352948948,1739457032583,-3940.7596226,0.00013239,2]
[352948950,1739457032593,-354.9488798,0.00013541,2]
[352948952,1739457032603,-700.0,0.00013682,2]
[352948954,1739457032612,-160.211,0.00013682,2]
[352948956,1739457032622,-306.0,0.0001389,2]
[352948958,1739457032631,-153.0,0.0001389,2]
[352948960,1739457032641,-24900.0,0.00013918,2]
[352948962,1739457032650,-354.9488798,0.00013941,2]
[352948964,1739457032660,-354.9488798,0.00014041,2]
[352948965,1739457032669,-354.9488798,0.00014041,2]
[352948967,1739457032679,-153.0,0.00014078,2]
[352948969,1739457032688,-153.0,0.00014078,2]
[352948971,1739457032698,-354.9488798,0.00014164,2]
[352948974,1739457032708,-353.219179,0.00014164,2]
[352948976,1739457032718,-153.0,0.00014178,2]
[352948978,1739457032727,-153.0,0.00014178,2]
[352948980,1739457032737,-153.0,0.00014178,2]
[352948982,1739457032746,-153.0,0.00014178,2]
[352948984,1739457032760,-354.9488798,0.00014241,2]
[352948986,1739457032769,-306.0,0.00014378,2]
[352948987,1739457032779,-153.0,0.00014378,2]
[352948990,1739457032788,-162.5,0.00014378,2]
[352948991,1739457032798,-354.9488798,0.000144,2]
[352948993,1739457032808,-3300.88495536,0.000144,2]
[352948995,1739457032817,-1620.37389519,0.000144,2]
[352948997,1739457032827,-500.0,0.00014473,2]
[352948999,1739457032836,-193.82069332,0.00014499,2]
[352949002,1739457032847,-241.89254365,0.00014499,2]
[352949004,1739457032856,-1451.82400105,0.000145,5]
[352949006,1739457032865,-10423.08884249,0.000145,5]
[352949008,1739457032875,-29675.93871748,0.000145,5]
[352949009,1739457032888,-5430.26177954,0.000145,5]
[352949010,1739457032899,-6099.12788649,0.000145,5]
[352949011,1739457032911,-3689.18319,0.000145,5]
[352949012,1739457032925,-3910.54,0.000145,5]
[352949013,1739457032936,-72837.78707526,0.000145,5]
[352949034,1739457038990,-1242.46571433,0.00011426,2]
[352949036,1739457039002,-6329.21981751,0.00011426,2]
[352949037,1739457039017,-5249.22890329,0.00011426,2]
[352949105,1739457040819,-12079.08556487,0.00011426,2]
[352949107,1739457040829,-1067.02037178,0.000144,2]
[352949109,1739457040840,-725.91200052,0.000145,5]
[352949111,1739457040851,-529.13272441,0.000145,5]
[352949113,1739457040863,-15375.79842595,0.000145,5]
[352949116,1739457040875,-1328.84999981,0.000145,5]
[352949394,1739457043684,-396.60713224,0.000145,5]
[352949565,1739457628736,-362.95600026,0.00013917,5]
[352949566,1739457628762,-137.04399974,0.00013917,5]
[352949568,1739457699871,-400.0,0.00010685,2]
[352949616,1739458232724,-24900.0,0.00012916,2]
[352949619,1739458232735,-600.0,0.00013408,2]
[352949620,1739458232744,-500.0,0.00013698,2]
[352949623,1739458232754,-500.0,0.00013698,2]
[352949624,1739458232764,-500.0,0.00013698,2]
[352949626,1739458232774,-500.0,0.00013698,2]
[352949629,1739458232785,-500.0,0.0001378,2]
[352949631,1739458232794,-500.0,0.0001378,2]
[352949632,1739458232803,-500.0,0.0001378,2]
[352949634,1739458232813,-500.0,0.0001378,2]
[352949636,1739458232825,-500.0,0.00013863,2]
[352949638,1739458232834,-500.0,0.00013863,2]
[352949640,1739458232844,-500.0,0.00013863,2]
[352949642,1739458232853,-500.0,0.00013863,2]
[352949644,1739458232862,-1458.33650568,0.00013899,2]
[352949645,1739458232872,-152.0,0.000139,2]
[352949646,1739458232883,-500.0,0.00013915,2]
[352949647,1739458232897,-500.0,0.00013915,2]
[352949648,1739458232907,-500.0,0.00013915,2]
[352949649,1739458232916,-500.0,0.00013915,2]
[352949650,1739458232927,-638.07377899,0.00013915,2]
[352949651,1739458232937,-500.0,0.00013915,2]
[352949652,1739458232946,-500.0,0.00013915,2]
[352949653,1739458232956,-500.0,0.00013915,2]
[352949654,1739458232969,-500.0,0.00013915,2]
[352949655,1739458232982,-500.0,0.00013915,2]
[352949656,1739458232992,-500.0,0.00013915,2]
[352949657,1739458233002,-500.0,0.00013915,2]
[352949658,1739458233011,-500.0,0.00013915,2]
[352949659,1739458233021,-500.0,0.00013915,2]
[352949660,1739458233031,-500.0,0.00013915,2]
[352949661,1739458233040,-142.16589596,0.00013915,2]
[352949704,1739458238723,-264.5685654,0.00013698,2]
[352949705,1739458238736,-235.4314346,0.00013698,2]
[352949706,1739458238746,-500.0,0.0001378,2]
[352949707,1739458238755,-500.0,0.00013863,2]
[352949708,1739458238765,-357.83410404,0.00013915,2]
[352949709,1739458238775,-500.0,0.00013915,2]
[352949710,1739458238784,-500.0,0.00013915,2]
[352949712,1739458238794,-500.0,0.00013915,2]
[352949714,1739458238804,-500.0,0.00013915,2]
[352949716,1739458238813,-500.0,0.00013915,2]
[352949717,1739458238824,-65.68069258,0.00013915,2]
[352949719,1739458241217,-56.0665,0.00013915,2]
[352949720,1739458241232,-378.25280742,0.00013915,2]
[352949721,1739458241242,-33.57488558,0.00013915,2]
[352951483,1739459259116,1000.0,0.00014,30]
[352951485,1739459325561,1000.0,0.00014,60]
[352951487,1739459340350,1000.0,0.00014,90]
[352951844,1739459378510,7811.90447902,0.00014,30]
[352951863,1739459433036,-400.0,0.00010685,2]
[352951864,1739459433047,-2529.44758277,0.00011643,4]
[352951865,1739459433058,-900.0,0.00012312,2]
[352951866,1739459433068,-300.0,0.00012438,2]
[352951867,1739459433079,-24900.0,0.00012439,2]
[352951868,1739459433090,-15280.0,0.00013,2]
[352951869,1739459433100,-523.28058958,0.00013236,2]
[352951870,1739459433112,-525.2209355,0.00013336,2]
[352951871,1739459433122,-153.0,0.000134,2]
[352951872,1739459433132,-525.22093546,0.00013402,2]
[352951873,1739459433142,-523.28058957,0.00013402,2]
[352951874,1739459433151,-500.0,0.00013434,2]
[352951875,1739459433161,-500.0,0.00013434,2]
[352951876,1739459433172,-217.02477985,0.00013434,2]
[352951877,1739459433182,-500.0,0.00013434,2]
[352951878,1739459433192,-517.89315317,0.00013434,2]
[352951879,1739459433202,-500.0,0.00013434,2]
[352951880,1739459433211,-500.0,0.00013434,2]
[352951881,1739459433221,-500.0,0.00013434,2]
[352951882,1739459433231,-633.08911395,0.00013434,2]
[352951883,1739459433241,-500.0,0.00013434,2]
[352951885,1739459433254,-500.0,0.00013434,2]
[352951887,1739459433264,-500.0,0.00013434,2]
[352951889,1739459433273,-500.0,0.00013434,2]
[352951891,1739459433283,-500.0,0.00013434,2]
[352951893,1739459433293,-500.0,0.00013434,2]
[352951895,1739459433303,-500.0,0.00013434,2]
[352951897,1739459433312,-500.0,0.00013434,2]
[352951899,1739459433322,-500.0,0.00013434,2]
[352951901,1739459433335,-500.0,0.00013434,2]
[352951903,1739459433345,-500.0,0.00013434,2]
[352951905,1739459433355,-500.0,0.00013434,2]
[352951907,1739459433368,-500.0,0.00013434,2]
[352951909,1739459433379,-405.66385678,0.00013434,2]
[352951911,1739459433388,-500.0,0.00013434,2]
[352951913,1739459433398,-500.0,0.00013434,2]
[352951915,1739459433408,-500.0,0.00013434,2]
[352951917,1739459433418,-500.0,0.00013434,2]
[352951919,1739459433428,-500.0,0.00013434,2]
[352951921,1739459433438,-500.0,0.00013434,2]
[352951923,1739459433447,-500.0,0.00013434,2]
[352951925,1739459433457,-500.0,0.00013434,2]
[352951927,1739459433467,-500.0,0.00013434,2]
[352951929,1739459433476,-2245.98330595,0.00013435,5]
[352951931,1739459433488,-1289.31172241,0.00013435,5]
[352951934,1739459433500,-70812.57734261,0.00013435,5]
[352951935,1739459433512,-40933.15803342,0.00013435,5]
[352951936,1739459433524,-3161.1948724,0.00013435,5]
[352951937,1739459433540,-85804.98765476,0.00013435,5]
[352951939,1739459433550,-10448.66610759,0.00013435,5]
[352951941,1739459433560,-525.22093546,0.00013467,2]
[352951943,1739459433569,-153.0,0.000135,2]
[352951945,1739459433579,-153.0,0.000135,2]
[352951947,1739459433588,-153.0,0.000135,2]
[352951949,1739459433598,-11052.63219863,0.00013521,2]
[352951951,1739459433608,-525.22093546,0.00013533,2]
[352951953,1739459433620,-41748.1050375,0.00013598,5]
[352951955,1739459433630,-525.22093546,0.00013598,2]
[352951957,1739459433640,-300.0,0.00013648,2]
[352951959,1739459433650,-1237.83185827,0.0001368,2]
[352951961,1739459433660,-900.0,0.00013682,2]
[352951963,1739459433669,-500.0,0.00013697,2]
[352951965,1739459433679,-215.71197353,0.00013697,2]
[352951967,1739459433689,-342.57311811,0.00013697,2]
[352951969,1739459433698,-500.0,0.00013698,2]
[352951971,1739459433708,-500.0,0.00013698,2]
[352951973,1739459433718,-572.17,0.00013698,2]
[352951975,1739459433729,-500.0,0.00013698,2]
[352951977,1739459433738,-500.0,0.00013698,2]
[352951979,1739459433748,-500.0,0.00013698,2]
[352951981,1739459433759,-500.0,0.00013698,2]
[352951983,1739459433770,-508.86164509,0.00013698,2]
[352951985,1739459433780,-223.22035049,0.00013698,2]
[352951987,1739459433789,-500.0,0.00013698,2]
[352951989,1739459433799,-500.0,0.00013698,2]
[352951991,1739459433808,-500.0,0.00013698,2]
[352952009,1739459433818,-150.02809299,0.00013698,2]
[352952013,1739459434002,-500.0,0.00013698,2]
[352952015,1739459434013,-500.0,0.00013698,2]
[352952017,1739459434023,-501.0818335,0.00013698,2]
[352952019,1739459434034,-500.80171417,0.00013698,2]
[352952021,1739459434043,-295.5279842,0.00013698,2]
[352952023,1739459434053,-500.0,0.00013698,2]
[352952025,1739459434063,-500.0,0.00013698,2]
[352952027,1739459434073,-500.0,0.00013698,2]
[352952029,1739459434083,-598.81526012,0.00013698,2]
[352952031,1739459434094,-500.0,0.00013698,2]
[352952034,1739459434104,-500.0,0.00013698,2]
[352952036,1739459434115,-500.0,0.00013698,2]
[352952037,1739459434125,-500.0,0.00013698,2]
[352952039,1739459434135,-1229.38,0.00013698,2]
[352952040,1739459434145,-501.02188331,0.00013698,2]
[352952041,1739459434155,-500.0,0.00013698,2]
[352952042,1739459434165,-500.0,0.00013698,2]
[352952043,1739459434175,-722.01,0.00013698,2]
[352952044,1739459434185,-500.0,0.00013698,2]
[352952045,1739459434195,-500.0,0.00013698,2]
[352952046,1739459434205,-500.0,0.00013698,2]
[352952047,1739459434215,-500.0,0.00013698,2]
[352952048,1739459434225,-500.0,0.00013698,2]
[352952049,1739459434234,-500.0,0.00013698,2]
[352952050,1739459434245,-500.0,0.00013698,2]
[352952051,1739459434257,-500.0,0.00013698,2]
[352952052,1739459434268,-500.0,0.00013698,2]
[352952053,1739459434279,-500.0,0.00013698,2]
[352952054,1739459434290,-500.0,0.00013698,2]
[352952055,1739459434300,-500.0,0.00013698,2]
[352952056,1739459434309,-500.0,0.00013698,2]
[352952057,1739459434319,-501.38138146,0.00013698,2]
[352952058,1739459434331,-500.0,0.00013698,2]
[352952059,1739459434342,-500.0,0.00013698,2]
[352952060,1739459434352,-500.0,0.00013698,2]
[352952061,1739459434365,-500.0,0.00013698,2]
[352952062,1739459434377,-500.0,0.00013698,2]
[352952063,1739459434388,-328.09916086,0.00013698,2]
[352952064,1739459434399,-1435.79,0.00013698,2]
[352952065,1739459434409,-500.0,0.00013698,2]
[352952066,1739459434419,-500.0,0.00013698,2]
[352952067,1739459434428,-500.0,0.00013698,2]
[352952068,1739459434438,-151.336542,0.00013698,2]
[352952069,1739459434448,-737.81,0.00013698,2]
[352952070,1739459434457,-501.73775362,0.00013698,2]
[352952071,1739459434468,-500.0,0.00013698,2]
[352952072,1739459434478,-500.53972803,0.00013698,2]
[352952073,1739459434487,-500.0,0.00013698,2]
[352952074,1739459434497,-500.0,0.00013698,2]
[352952075,1739459434507,-212.86749259,0.00013698,2]
[352952076,1739459434516,-501.12981493,0.00013698,2]
[352952077,1739459434527,-500.0,0.00013698,2]
[352952078,1739459434536,-501.25359163,0.00013698,2]
[352952079,1739459434546,-375.66003318,0.00013698,2]
[352952080,1739459434555,-500.0,0.00013698,2]
[352952081,1739459434565,-190.62545182,0.00013698,2]
[352952082,1739459434575,-501.15135539,0.00013698,2]
[352952083,1739459434584,-500.0,0.00013698,2]
[352952084,1739459434594,-500.76129922,0.00013698,2]
[352952085,1739459434603,-553.51,0.00013698,2]
[352952086,1739459434617,-500.0,0.00013698,2]
[352952087,1739459434626,-500.0,0.00013698,2]
[352952088,1739459434636,-500.0,0.00013698,2]
[352952089,1739459434645,-500.0,0.00013698,2]
[352952090,1739459434654,-500.0,0.00013698,2]
[352952091,1739459434663,-500.0,0.00013698,2]
[352952092,1739459434673,-500.0,0.00013698,2]
[352952093,1739459434682,-591.27853843,0.00013698,2]
[352952094,1739459434691,-500.0,0.00013698,2]
[352952095,1739459434701,-500.0,0.00013698,2]
[352952096,1739459434710,-500.0,0.00013698,2]
[352952097,1739459434720,-1294.28,0.00013698,2]
[352952098,1739459434730,-500.0,0.00013698,2]
[352952099,1739459434739,-151.0,0.00013698,2]
[352952100,1739459434749,-151.0,0.00013698,2]
[352952101,1739459434758,-151.0,0.00013698,2]
[352952102,1739459434768,-578.40147354,0.00013698,2]
[352952103,1739459434777,-162.87708583,0.00013698,2]
[352952104,1739459434787,-500.0,0.00013698,2]
[352952105,1739459434796,-500.0,0.00013698,2]
[352952106,1739459434806,-500.0,0.00013698,2]
[352952107,1739459434815,-500.0,0.00013698,2]
[352952108,1739459434825,-500.0,0.00013698,2]
[352952109,1739459434834,-1016.85,0.00013698,2]
[352952110,1739459434844,-500.0,0.00013698,2]
[352952111,1739459434853,-500.0,0.00013698,2]
[352952112,1739459434867,-500.0,0.00013698,2]
[352952113,1739459434876,-500.0,0.00013698,2]
[352952114,1739459434886,-500.0,0.00013698,2]
[352952115,1739459434896,-500.0,0.00013698,2]
[352952116,1739459434905,-500.0,0.00013698,2]
[352952117,1739459434915,-500.0,0.00013698,2]
[352952118,1739459434924,-500.0,0.00013698,2]
[352952119,1739459434934,-500.0,0.00013698,2]
[352952120,1739459434944,-500.0,0.00013698,2]
[352952121,1739459434953,-500.56,0.00013698,2]
[352952122,1739459434963,-1693.82455,0.00013698,2]
[352952123,1739459434972,-500.0,0.00013698,2]
[352952124,1739459434982,-500.0,0.00013698,2]
[352952125,1739459434991,-1693.82455,0.00013698,2]
[352952126,1739459435001,-1143.73,0.00013698,2]
[352952127,1739459435010,-500.0,0.00013698,2]
[352952128,1739459435020,-500.0,0.00013698,2]
[352952129,1739459435030,-500.0,0.00013698,2]
[352952130,1739459435039,-500.0,0.00013698,2]
[352952131,1739459435048,-500.0,0.00013698,2]
[352952132,1739459435058,-500.36812525,0.00013698,2]
[352952133,1739459435067,-500.0,0.00013698,2]
[352952134,1739459435077,-960.29,0.00013698,2]
[352952135,1739459435086,-500.0,0.00013698,2]
[352952136,1739459435097,-960.29,0.00013698,2]
[352952137,1739459435106,-960.29,0.00013698,2]
[352952138,1739459435116,-500.0,0.00013698,2]
[352952139,1739459435126,-960.29,0.00013698,2]
[352952140,1739459435135,-960.29,0.00013698,2]
[352952141,1739459435145,-960.29,0.00013698,2]
[352952142,1739459435155,-500.35283795,0.00013698,2]
[352952143,1739459435164,-500.0,0.00013698,2]
[352952144,1739459435174,-500.0,0.00013698,2]
[352952145,1739459435183,-500.0,0.00013698,2]
[352952146,1739459435193,-500.0,0.00013698,2]
[352952147,1739459435203,-500.0,0.00013698,2]
[352952148,1739459435212,-500.0,0.00013698,2]
[352952149,1739459435222,-1994.69,0.00013698,2]
[352952150,1739459435231,-500.0,0.00013698,2]
[352952151,1739459435241,-422.27726555,0.00013698,2]
[352952152,1739459435253,-151.726514,0.00013698,2]
[352952153,1739459435263,-500.0,0.00013698,2]
[352952154,1739459435273,-500.0,0.00013698,2]
[352952155,1739459435283,-500.0,0.00013698,2]
[352952156,1739459435294,-500.33158906,0.00013698,2]
[352952157,1739459435304,-1237.37,0.00013698,2]
[352952158,1739459435313,-500.0,0.00013698,2]
[352952159,1739459435323,-500.0,0.00013698,2]
[352952160,1739459435333,-500.0,0.00013698,2]
[352952161,1739459435344,-505.44,0.00013698,2]
[352952162,1739459435354,-500.0,0.00013698,2]
[352952163,1739459435366,-500.0,0.00013698,2]
[352952164,1739459435376,-500.0,0.00013698,2]
[352952165,1739459435386,-500.0,0.00013698,2]
[352952166,1739459435395,-431.97357348,0.00013698,2]
[352952167,1739459435405,-500.0,0.00013698,2]
[352952168,1739459435415,-500.0,0.00013698,2]
[352952169,1739459435425,-1005.2891719,0.00013698,2]
[352952170,1739459435434,-500.0,0.00013698,2]
[352952171,1739459435444,-500.0,0.00013698,2]
[352952172,1739459435454,-500.0,0.00013698,2]
[352952173,1739459435464,-500.0,0.00013698,2]
[352952174,1739459435475,-500.0,0.00013698,2]
[352952175,1739459435484,-500.0,0.00013698,2]
[352952176,1739459435494,-151.0,0.00013698,2]
[352952177,1739459435503,-151.0,0.00013698,2]
[352952178,1739459435513,-500.0,0.00013698,2]
[352952179,1739459435523,-500.0,0.00013698,2]
[352952180,1739459435533,-500.0,0.00013698,2]
[352952181,1739459435543,-500.50447384,0.00013698,2]
[352952182,1739459435552,-500.0,0.00013698,2]
[352952183,1739459435562,-500.0,0.00013698,2]
[352952184,1739459435572,-557.01501101,0.00013698,2]
[352952185,1739459435582,-174.06446,0.00013698,2]
[352952186,1739459435591,-174.06446,0.00013698,2]
[352952187,1739459435601,-500.0,0.00013698,2]
[352952188,1739459435610,-559.33,0.00013698,2]
[352952189,1739459435622,-174.06446,0.00013698,2]
[352952190,1739459435632,-500.0,0.00013698,2]
[352952191,1739459435643,-174.06446,0.00013698,2]
[352952192,1739459435653,-513.37,0.00013698,2]
[352952193,1739459435663,-500.70318429,0.00013698,2]
[352952194,1739459435674,-500.0,0.00013698,2]